Cogmind - Beta 15 @@@ ROGUE MODE // 2025.08.07 @ 19:27:00 Player: KN-OKO Result: Destroyed by S-10 Pest with Light Assault Rifle Performance ------------- Evolutions (0) 0 Regions Visited (2) 400 Robots Destroyed (20) 100 Value Destroyed (489) 489 Prototype IDs (0) 0 Alien Tech Used (0) 0 Bonus (0) 0 TOTAL SCORE: 989 Bonus ------- None Cogmind --------- Core Integrity 0/250 Matter 276/300 Energy 146/200 System Corruption 1% Temperature Cool (24) Movement Rolling (215) Ox9 Location -10/Subcaves Parts ------- > --- POWER (1) -------- Subdweller Power Source > --- PROPULSION (2) --- Aluminum Leg Wheel > --- UTILITY (2) ------ Huge Storage Unit Seismic Detector > --- WEAPON (2) ------- Particle Gun Particle Gun > --- INVENTORY (25) --- Aluminum Leg Aluminum Leg Improved Heat Sink Makeshift Hacking Suite Authchip [R/Combat] Medium Laser Subdweller Machine Gun Mining Claw Peak State ------------ > --- POWER ------------ Ion Engine > --- PROPULSION ------- Light Treads Compact Wheel > --- UTILITY ---------- Improved Heat Sink Small Storage Unit > --- WEAPON ----------- Particle Gun Particle Gun > --- INVENTORY -------- Light Treads Aluminum Leg Aluminum Leg Aluminum Leg Wheel Targeting Computer Authchip [R/Combat] Medium Laser [Rating: 12] Favorites ----------- Power Ion Engine Engine Ion Engine Propulsion Light Treads Treads Light Treads Leg Aluminum Leg Wheel Compact Wheel Utility Small Storage Unit Device Improved Heat Sink Storage Small Storage Unit Weapon Particle Gun Energy Gun Particle Gun Ballistic Gun Assault Rifle Build | -11 -10 -10 ------- Run | Yrd Mat Sub Slots Evolved . | . . . Power . | . . . Propulsion . | . . . Utility . | . . . Weapon . | . . . Parts Attached 15 | 6 5 4 Power 2 | 1 . 1 Engine 2 | 1 . 1 Core . | . . . Reactor . | . . . Propulsion 5 | 2 1 2 Treads 2 | 1 1 . Leg 1 | . . 1 Wheel 2 | 1 . 1 Hover . | . . . Flight . | . . . Utility 4 | 1 2 1 Device 2 | . 1 1 Storage 2 | 1 1 . Processor . | . . . Hackware . | . . . Protection . | . . . Artifact . | . . . Weapon 4 | 2 2 . Energy Gun 2 | . 2 . Energy Cannon . | . . . Ballistic Gun 2 | 2 . . Ballistic Cannon . | . . . Launcher . | . . . Special Weapon . | . . . Impact Weapon . | . . . Slashing Weapon . | . . . Piercing Weapon . | . . . Special Melee Weapon . | . . . Unidentified Prototypes . | . . . Parts Lost 3 | . . 3 Power 1 | . . 1 Propulsion 2 | . . 2 Utility . | . . . Weapon . | . . . Highest Loss Streak 2 | . . 2 To Critical Strikes . | . . . Average Backups 8 | 4 7 9 Power . | . . . Propulsion 4 | 2 4 3 Utility 1 | . 1 2 Weapon 1 | . 1 2 Tool/Special . | . . . Unused Backups 12 | . 5 7 Power 1 | . 1 . Propulsion 5 | . 3 2 Utility 3 | . 1 2 Weapon 3 | . . 3 Tool/Special . | . . . Average Slot Usage (%) 98 | . 98 100 Engine 13 | . 13 14 Treads 23 | . 22 24 Wheel 4 | . 4 3 Device 13 | . 13 14 Storage 14 | . 14 14 Energy Gun 25 | . 23 28 Ballistic Gun 2 | . 4 . Peak Build Rating 12 | 6 12 12 Average Rating 10 | 4 11 10 On Entrance 6 | . 6 12 Naked Turns . | . . . Heaviest Build 92 | 13 92 92 Greatest Support 40 | 16 40 40 Greatest Overweight (x) 9 | 2 2 9 Average Overweight (x) 1 | . . 3 Largest Inventory Capacity 25 | 8 25 25 Average Capacity 15 | 6 8 25 Most Carried 11 | 6 8 11 Average Carried 8 | 4 7 9 Final Capacity 25 | 8 25 25 Final Carried 8 | 6 8 8 Class Distribution -------------------- 100% | Mutant Dominant Class ---------------- Mutant | -10/Materials Mutant | -10/Subcaves Resources | -11 -10 -10 ----------- Run | Yrd Mat Sub Matter Collected 422 | 234 158 30 Remotely . | . . . Salvage Created 712 | . 579 133 Parts 36 | . 31 5 Haulers Intercepted . | . . . Recyclers Shooed . | . . . Parts Field Recycled . | . . . Retrieved Matter . | . . . Parts Self-Destructed 10 | . . 10 Prevented . | . . . Kills | -11 -10 -10 ------- Run | Yrd Mat Sub Combat Hostiles Destroyed 13 | . 8 5 Guns 13 | . 8 5 Classes Destroyed 7 | . 5 2 Worker 3 | . 3 . Tunneler 1 | . 1 . Recycler 2 | . 2 . Watcher 1 | . 1 . Swarmer 2 | . . 2 Grunt 8 | . 8 . Subdweller 3 | . . 3 Best Kill Streak 4 | . 4 2 Combat Bots Only 2 | . 2 2 Max Kills in Single Turn 1 | . 1 1 Gunslinging . | . . . Exploded . | . . . Melee . | . . . Uniques/NPCs Destroyed . | . . . Combat | -11 -10 -10 -------- Run | Yrd Mat Sub Hostile Shots Fired 57 | . 27 30 Missed 9 | . 6 3 Hits 48 | . 21 27 Projectile 48 | . 21 27 AOE 4 | . . 4 Damage Taken 921 | . 316 605 Core 258 | . 82 176 Absorbed by Shields . | . . . Regen/Repaired (Parts) 99 | . 99 . Core Remaining (%) 100 | 100 . . Volleys Fired 52 | . 38 14 Largest 2 | . 2 2 Hottest 130 | . 130 130 Shots Fired 103 | . 75 28 Gun 103 | . 75 28 Cannon . | . . . Launcher . | . . . Special . | . . . Kinetic 22 | . 22 . Thermal 81 | . 53 28 Explosive . | . . . Electromagnetic . | . . . Robot Hit Streak 11 | . 10 11 Robot Miss Streak 1 | . 1 1 Penetration Max . | . . . Secondary Targets 1 | . . 1 Max Gunslinging Chain 1 | . . 1 Shots Hit Robots 71 | . 47 24 Core Hits 34 | . 26 8 Critical Kills . | . . . Critical Parts Destroyed 1 | . 1 . Critical Strikes 5 | . 3 2 Burn 4 | . 2 2 Destroy 1 | . 1 . Melee Attacks . | . . . Impact . | . . . Slashing . | . . . Piercing . | . . . Sneak Attacks . | . . . Combat Hostiles . | . . . Follow-up Attacks . | . . . Damage Inflicted 1057 | . 675 382 Guns 1057 | . 675 382 Cannons . | . . . Explosions . | . . . Melee . | . . . Ramming . | . . . Kinetic 187 | . 187 . Thermal 870 | . 488 382 Explosive . | . . . Electromagnetic . | . . . Impact . | . . . Slashing . | . . . Piercing . | . . . Highest Corruption 1 | . 1 1 Average Corruption 1 | . 1 1 Corruption Purged . | . . . Corruption Blocked . | . . . Effects 6 | . 4 2 Message Errors 3 | . 2 1 Matter Fused 1 | . . 1 Misfires 1 | . 1 . Alerts 1 | . 1 . Overload Shots . | . . . Overflow Damage . | . . . Projectiles . | . . . Explosions . | . . . Melee . | . . . Knockbacks . | . . . Impact . | . . . Kinetic . | . . . Secondary . | . . . Self-Inflicted Damage . | . . . Shots . | . . . Rammed . | . . . Targets Rammed . | . . . Kicked . | . . . Crushed . | . . . Highest Temperature 231 | . 231 81 Average Temperature 50 | . 63 27 Received Heat Transfer 198 | . 156 42 Siege Activations . | . . . Martial Activations . | . . . Shielding Activations . | . . . Robots Disrupted . | . . . Combat Hostiles . | . . . Robots Corrupted . | . . . Combat Hostiles . | . . . Parts Fried . | . . . Impact Corruptions . | . . . Robots Melted . | . . . Combat Hostiles . | . . . Parts Melted 4 | . 2 2 Heat Transferred 2368 | . 1332 1036 Parts Sabotaged . | . . . Parts Stolen . | . . . Parts Stripped . | . . . Power Chain Reactions . | . . . Alert | -11 -10 -10 ------- Run | Yrd Mat Sub Maximum Alert Level . | . . . Low Security (%) 100 | 100 100 . Level 1 . | . . . Level 2 . | . . . Level 3 . | . . . Level 4 . | . . . Level 5 . | . . . High Security . | . . . Max Security . | . . . Peak Influence 85 | . 85 . Initial . | . . . Average 18 | . 19 . Influence Increases 321 | . 271 50 Destroy 0b10 Robot/C 200 | . 160 40 Destroy 0b10 Robot/NC 35 | . 35 . Destroy Leader 52 | . 42 10 Successful Hack 3 | . 3 . Destroy Structure 1 | . 1 . Lose Combat Pursuer 30 | . 30 . Influence Decreases 279 | . 271 8 Time Decay 279 | . 271 8 Squads Dispatched 1 | . 1 . Investigation . | . . . Extermination . | . . . Reinforcement 1 | . 1 . Assault . | . . . Garrison . | . . . Intercept . | . . . Searches Triggered . | . . . Construction Impeded . | . . . Haulers Reinforced . | . . . Active Scanning Responses . | . . . Cargo Convoy Interrupts . | . . . Stealth | -11 -10 -10 --------- Run | Yrd Mat Sub Distress Signals 1 | . 1 . Communications Jammed . | . . . Distress Signals . | . . . Times Spotted 19 | . 13 6 Peak Tracking Total 3 | . 2 3 Tactical Retreats 2 | . 2 . Traps | -11 -10 -10 ------- Run | Yrd Mat Sub Traps Triggered 3 | . 2 1 Indirectly . | . . . Trap Hack Attempts . | . . . Triggered . | . . . Disarmed . | . . . Reprogrammed . | . . . Reused . | . . . Traps Extracted . | . . . Installed . | . . . Triggered . | . . . Machines | -11 -10 -10 ---------- Run | Yrd Mat Sub Machines Disabled . | . . . Max in Single Turn . | . . . Machines Repaired . | . . . Machines Dismantled . | . . . Machines Sabotaged . | . . . Overloaded Fab Kills . | . . . Hacking | -11 -10 -10 --------- Run | Yrd Mat Sub Machines Accessed 2 | . 2 . Terminals . | . . . Fabricators . | . . . Repair Stations 1 | . 1 . Recycling Units 1 | . 1 . Scanalyzers . | . . . Garrison Access . | . . . Total Hacks 8 | . 8 . Successful 6 | . 6 . Failed 2 | . 2 . Catastrophic . | . . . Database Lockouts . | . . . Manual . | . . . Terminals . | . . . Fabricators . | . . . Repair Stations 4 | . 4 . Recycling Units 4 | . 4 . Scanalyzers . | . . . Garrison Access . | . . . Terminal Hacks . | . . . Fabricator Hacks . | . . . Repair Station Hacks 4 | . 4 . Scan Component 2 | . 2 . Repair 2 | . 2 . Recycling Unit Hacks 2 | . 2 . Report Inventory 1 | . 1 . Retrieve Components 1 | . 1 . Scanalyzer . | . . . Garrison Access Hacks . | . . . Unauthorized Hacks . | . . . Terminals . | . . . Fabricators . | . . . Repair Stations . | . . . Recycling Units . | . . . Scanalyzers . | . . . Garrison Access . | . . . Data Cores Recovered . | . . . Used . | . . . Hacking Detections 2 | . 2 . Full Trace Events . | . . . Feedback Events . | . . . Feedback Blocked . | . . . Robot Schematics Acquired . | . . . Robots Built . | . . . Authchips . | . . . Time . | . . . Total Robot Build Rating . | . . . Part Schematics Acquired . | . . . Parts Built . | . . . Authchips . | . . . Time . | . . . Total Part Build Rating . | . . . Parts Repaired 2 | . 2 . Time 52 | . 52 . Parts Recycled . | . . . Recycled Matter . | . . . Retrieved Matter . | . . . Retrieved Components 6 | . 6 . Parts Scanalyzed . | . . . Part Schematics Acquired . | . . . Parts Damaged . | . . . Bothacking | -11 -10 -10 ------------ Run | Yrd Mat Sub Used RIF Installer . | . . . Robots Hacked . | . . . Non-combat . | . . . Combat . | . . . Robot Hacks Applied . | . . . Relay Couplers Released . | . . . Fabnet Peak Effective % . | . . . Robots Rewired . | . . . Allies Hacked . | . . . Hacks Repelled . | . . . Allies | -11 -10 -10 -------- Run | Yrd Mat Sub Total Allies . | . . . Largest Group . | . . . Highest-Rated Group . | . . . Highest-Rated Ally . | . . . Total Orders . | . . . Ally Attacks . | . . . Total Damage . | . . . Kills . | . . . Allies Corrupted . | . . . Allies Melted . | . . . Intel | -11 -10 -10 ------- Run | Yrd Mat Sub Active Infowar (turns) 763 | . . 763 Seismic 763 | . . 763 Robot Analysis Total . | . . . Derelict Logs Recovered . | . . . Drone Launches . | . . . Drone Recoveries . | . . . Exploration | -11 -10 -10 ------------- Run | Yrd Mat Sub Turns Passed 1927 | 57 1087 783 Spaces Moved 868 | 44 595 229 Core 7 | 7 . . Treads 544 | . 371 173 Legs . | . . . Wheels 317 | 37 224 56 Hover . | . . . Flight . | . . . Fastest Speed 50 | 50 100 215 Average Speed 181 | 96 143 295 Slowest Speed 480 | 150 320 480 Overloaded Moves . | . . . Propulsion Burnouts . | . . . Robots Hopped . | . . . Potential Cave-ins . | . . . Cave-ins Triggered . | . . . Exploration Rate (%) 39 | 4 97 16 Regions Visited 2 Branch Regions 1 Pre-discovered Areas . | . . . Known Exits Taken . | . . . Unknown Exits Taken 2 | 1 1 . Scrap Searched 2 | . . 2 Spaces Dug . | . . . Terrain Destroyed . | . . . Melee . | . . . Projectile . | . . . AOE . | . . . Terrain Rammed . | . . . Walls Destroyed . | . . . Machines Disabled . | . . . Actions | -11 -10 -10 --------- Run | Yrd Mat Sub Total 1126 | 56 763 307 Wait 161 | . 104 57 Move 866 | 43 594 229 Hop . | . . . Pick Up 18 | 7 8 3 Fast Attach 10 | 5 5 . Attach 5 | 1 1 3 Detach 1 | . 1 . Swap 3 | . 2 1 Drop 10 | . 10 . Fire 52 | . 38 14 Melee . | . . . Ram . | . . . Kick . | . . . Crush . | . . . Escape Stasis . | . . . Rewire . | . . . Trap . | . . . Miscellaneous . | . . . Route ------- -11/Scrapyard -10/Materials (discovered 5 exits: [*Mat x3] / [*Min] / [*Sub]) -10/Subcaves (discovered 1 exit: [*Mat]) History --------- Turn | Location | Event 8 | -11/Scrapyard | Discovered new exit (range 16) 58 | -11/Scrapyard | Entered Materials 307 | -10/Materials | Discovered new exit (range 16) 318 | -10/Materials | Build established: Mutant 399 | -10/Materials | Discovered new exit (range 15) 528 | -10/Materials | Discovered new exit (range 3) 614 | -10/Materials | Repaired Ion Engine 641 | -10/Materials | Repaired Lgt. Treads 782 | -10/Materials | Discovered new exit (range 3) 1081 | -10/Materials | Discovered new exit (range 9) 1145 | -10/Materials | Entered Subcaves 1279 | -10/Subcaves | Discovered new exit (range 11) 1796 | -10/Subcaves | Core integrity fell below 50% 1896 | -10/Subcaves | Core integrity fell below 20% 1928 | -10/Subcaves | Destroyed by S-10 Pest with Light Assault Rifle Last Messages --------------- 01517_ Acquired Mak. Hacking Suite. 01542_ Subatomizers dissect the Disposable Heat Sink. 01569_ Subatomizers dissect the Disposable Heat Sink, destroying it. 01686_ #5ZUCQHEFVG>DSN,2TZPIP X POWGG CYAJRU 01740_ Lgt. Treads destroyed. 01749_ JP-0J6(R) destroyed. 01752_ Acquired 10 matter. 01806_ M8-7SV(R) suffers critical hit (Burn). 01806_ Sub. Monowheel melted. 01806_ Sub. Power Source melted. 01806_ M8-7SV(R) destroyed. 01814_ Subatomizers dissect the Sub. Laser. 01895_ Triggered Shrapnel Trap. 01895_ An expanding cloud of shrapnel blasts out in all directions. 01895_ Lgt. Treads destroyed. 01910_ System corrupted: Matter fused (-9). 01916_ Ion Engine destroyed. 01920_ S-10 Pest destroyed. 01920_ Switching to secondary target: S-10 Pest. 01923_ S-10 Pest destroyed. Map ----- +----------------------------------------------------+ | ?????????????????????????????????????????## #### | | ??????????????????????????????????????????# #??# | | ?????????????????????????????????????????## ##?# | | ??????????????????????????????????######## ### | | ??????????????????????????????????#" ##" ### | | ??????????????????????????????????#&# #### | | ??????????????????????????????????# ##"#" ## | | ????????????????????????????###???# %### | | ??????????????????????????### ##?#"%## | | ??????????????????????????# ########## | | ???????????????????????????# !%## | | ???????????????????????????#### &#### | | ??????????????????????????????## ## #??# | | ???????????????????????????????# ## < #### | | ???????????????????????????##### ## ## | | ???????????????????????????# ## | | ???????????????????????????## # | | ????????????? ??????????????## ### | | ???????????? ?????????????# #?# ### | | ???????????? ????????????# #?# ## | | ??????????? ??????????### #?# ### | | ??????????? ######???#"" "#?# #?## | | ??????????? #??#" "### #####?## | | ?????????? ??#" ;## ##????## | | ?????????? %###; ## #?????# | | ????????? #@ ;;# #?????## | | ????????? #%s ;;;## #???????## | | ???????????????# ^####### #????????## | | ???????????????# ^##?????###???????### | | ???????????????# ### ##???????????????## | | ???????????????# ????# ##????????????????# | | ?????????????????????# #?????????????????# | | ?????????????????????### #?????????????????## # | | ???????????????????????####??????????????????## # | | ??????????????????????????????????????????????## # | | ???????????????????????????????????????????????### | | ?????????????????????????????????????????????????? | | ?????????????????????????????????????????????????? | | ?????????????????????????????????????????????????? | | ?????????????????????????????????????????????????? | | ?????????????????????????????????????????????????? | | ?????????????????????????????????????????????????? | | ?????????????????????????????????????????????????? | | ?????????????????????????????????????????????????? | | ?????????????????????????????????????????????????? | | ?????????????????????????????????????????????????? | | ?????????????????????????????????????????????????? | | ?????????????????????????????????????????????????? | | ?????????????????????????????????????????????????? | | ?????????????????????????????????????????????????? | +----------------------------------------------------+ Best States ------------- Heat Dissipation 39 Energy Generation 15 Energy Capacity 250 Matter Stores 300 Matter Capacity 300 Sight Range 16 Terrain Scan Density 10 Evasion (%) 40 Recoil Reduction 2 Authchip Count 1 Item Schematics ----------------- None Robot Schematics ------------------ None Fabricated ------------ Nothing Repaired ---------- Ion Engine | 25% | -10/Materials Lgt. Treads | 61% | -10/Materials Alien Tech Used ----------------- None Achievements -------------- None Challenges ------------ None Game ------ Seed AbsorptionStormMultirail Manual? 0 Play Time 00:10:34 Cumulative 526.6 hours Start 2025.08.07 @ 19:16:33 End 2025.08.07 @ 19:27:00 Sessions 1 Manual Loads 0 Difficulty Rogue Special Mode None Game No. 361 Rogue 361 Adventurer 0 Explorer 0 Win Type - Total 50 Types 43/0/5/2/0/0/0/0/0/0 Lore% 84 Gallery% 81 Achievement% 73 Wizard Run 0 Options --------- Layout 0 ASCII 0 Keyboard 1 Movement Numpad Keybinds 0 Fullscreen 2 Font 24/Tamsyn Map View 76x50 Zoom Use 0% Tactical HUD 1 Map Filters NONE Filters NONE Steam 1 RUN: bf06b546-238b-43cb-a797-fcec34b260db